[Event "DEN-chT XtraCon 2018-19"]
[Site "Denmark"]
[Date "2019.01.13"]
[Round "6"]
[White "Bank, Pelle"]
[Black "Wiwe, Andreas"]
[Result "1/2-1/2"]
[ECO "A27"]
[WhiteElo "2300"]
[BlackElo "2304"]
[Annotator "NA"]
[PlyCount "110"]
[EventDate "2018.10.27"]
[EventType "team-tourn"]
[EventCountry "DEN"]
[SourceTitle "playchess.com"]
[Source "ChessBase"]
[SourceQuality "1"]
[TimeControl "40/5400+30:1800+30"]

1. c4 {[%emt 0:01:30]} e5 {[%emt 0:00:00]} 2. Nc3 {[%emt 0:00:14]} Nc6 {[%emt 0:00:01]} 3. Nf3 {[%emt 0:00:18]} f5 {[%emt 0:01:37]} 4. d4 {[%emt 0:00:12]} e4 {[%emt 0:00:05]} 5. Nd2 {[%emt 0:00:05]} Nf6 {[%emt 0:00:29]} 6. e3 {[%emt 0:00:04]} g6 {[%emt 0:04:02]} 7. Be2 {[%emt 0:02:34]} Bg7 {[%emt 0:00:08]} 8. O-O {[%emt 0:00:53]} O-O {[%emt 0:00:05]} 9. Rb1 {[%emt 0:02:07]} Qe7 {[%emt 0:03:44]} 10. Qa4 {[%emt 0:02:48]} d6 {[%emt 0:01:30]} 11. b4 {[%emt 0:00:32]} Bd7 {[%emt 0:01:30]} 12. b5 {[%emt 0:00:24]} Nd8 {[%emt 0:00:30]} 13. Qb4 {[%emt 0:19:31]} Nf7 {[%emt 0:02:04]} 14. a4 {[%emt 0:04:06]} f4 {[%emt 0:10:04]} 15. exf4 {[%emt 0:03:06]} e3 {[%emt 0:03:05]} 16. Nf3 {[%emt 0:00:58]} exf2+ {[%emt 0:01:40]} 17. Rxf2 {[%emt 0:04:55]} Bf5 {[%emt 0:03:17]} 18. Rb3 {[%emt 0:01:35]} Rae8 {[%emt 0:05:05]} 19. h3 {[%emt 0:05:39]} Ne4 {[%emt 0:02:50]} 20. Nxe4 {[%emt 0:00:11]} Bxe4 {[%emt 0:00:06]} 21. Qd2 {[%emt 0:04:24]} Qf6 {[%emt 0:16:24]} 22. Bb2 {[%emt 0:22:06]} Bh6 {[%emt 0:13:39]} 23. Nh2 {[%emt 0:03:28]} d5 {[%emt 0:13:01]} 24. Ng4 {[%emt 0:00:35]} Qe6 {[%emt 0:01:34]} 25. Ba3 {[%emt 0:04:10]} Bg7 {[%emt 0:00:58]} 26. Bxf8 {[%emt 0:00:22]} Rxf8 {[%emt 0:00:04]} 27. c5 {[%emt 0:01:14]} h5 {[%emt 0:03:27]} 28. Ne5 {[%emt 0:00:20]} Nh6 {[%emt 0:00:20]} 29. Rg3 Rf6 30. c6 {[%emt 0:04:38]} b6 {[%emt 0:00:56]} 31. a5 {[%emt 0:02:26]} Nf5 {[%emt 0:00:19]} 32. Ra3 {[%emt 0:00:07]} Bf8 {[%emt 0:00:29]} 33. Ra4 {[%emt 0:02:20]} Bd6 {[%emt 0:00:35]} 34. axb6 {[%emt 0:00:04]} axb6 {[%emt 0:00:03]} 35. Kh2 {[%emt 0:03:36]} Rf8 {[%emt 0:01:02]} 36. Bf3 {[%emt 0:02:48]} h4 {[%emt 0:02:43]} 37. Bg4 {[%emt 0:01:37]} Kg7 {[%emt 0:00:24]} 38. Qa2 {[%emt 0:00:43]} Qe8 {[%emt 0:00:23]} 39. Bxf5 {[%emt 0:00:06]} gxf5 {[%emt 0:01:03]} 40. Qa1 {[%emt 0:01:29]} Kh6 {[%emt 0:01:39]} 41. Rfa2 {[%emt 0:30:49]} Rg8 {[%emt 0:36:29]} 42. Qe1 {[%emt 0:00:00]} Rg3 {[%emt 0:00:00]} 43. Qf1 {[%emt 0:00:00]} Qg8 {[%emt 0:00:00]} 44. Qf2 {[%emt 0:00:00]} Bxe5 {[%emt 0:00:00]} 45. fxe5 {[%emt 0:00:00]} Qg5 {[%emt 0:00:00]} 46. Ra8 {[%emt 0:00:00]} Rxg2+ {[%emt 0:00:00]} 47. Qxg2 {[%emt 0:00:00]} Qf4+ {[%emt 0:00:00]} 48. Kg1 {[%emt 0:00:06]} Bxg2 {[%emt 0:00:00]} 49. Rxg2 {[%emt 0:01:57]} Qxd4+ {[%emt 0:00:00]} 50. Kh1 {[%emt 0:00:23]} Qxe5 {[%emt 0:00:00]} 51. Rag8 {[%emt 0:00:11]} d4 {[%emt 0:00:49]} 52. R8g6+ {[%emt 0:00:12]} Kh7 {[%emt 0:00:06]} 53. R6g5 {[%emt 0:00:11]} Kh6 {[%emt 0:02:20]} 54. Rg6+ {[%emt 0:00:06]} Kh7 {[%emt 0:00:04]} 55. R6g5 {[%emt 0:00:07]} Kh6 {[%emt 0:00:50]} 1/2-1/2

[Event "DEN-chT XtraCon 2018-19"]
[Site "Denmark"]
[Date "2019.01.13"]
[Round "6"]
[White "Greger, Roland Reinhard"]
[Black "Nielsen, Thomas Bach"]
[Result "1/2-1/2"]
[ECO "B12"]
[WhiteElo "2296"]
[BlackElo "2132"]
[Annotator "NA"]
[PlyCount "67"]
[EventDate "2018.10.27"]
[EventType "team-tourn"]
[EventCountry "DEN"]
[SourceTitle "playchess.com"]
[Source "ChessBase"]
[SourceQuality "1"]
[TimeControl "40/5400+30:1800+30"]

1. e4 {[%emt 0:00:00]} c6 {[%emt 0:00:00]} 2. d4 {[%emt 0:00:00]} d5 {[%emt 0:00:00]} 3. e5 {[%emt 0:00:00]} Bf5 {[%emt 0:00:00]} 4. Nc3 {[%emt 0:00:00]} e6 {[%emt 0:00:24]} 5. g4 {[%emt 0:00:00]} Bg6 {[%emt 0:00:21]} 6. Nge2 {[%emt 0:00:00]} c5 {[%emt 0:01:52]} 7. h4 {[%emt 0:00:21]} h5 {[%emt 0:13:43]} 8. Nf4 {[%emt 0:00:19]} Bh7 {[%emt 0:00:41]} 9. Nxh5 {[%emt 0:01:33]} cxd4 {[%emt 0:06:25]} 10. Qxd4 {[%emt 0:00:09]} Nc6 {[%emt 0:00:20]} 11. Bb5 {[%emt 0:00:11]} Nge7 {[%emt 0:01:00]} 12. Bh6 {[%emt 0:00:36]} a6 {[%emt 0:01:43]} 13. Bxc6+ {[%emt 0:01:39]} Nxc6 {[%emt 0:01:10]} 14. Qf4 {[%emt 0:00:22]} Rg8 {[%emt 0:19:49]} 15. O-O-O {[%emt 0:02:50]} Qa5 {[%emt 0:03:08]} 16. Rh3 {[%emt 0:06:05]} d4 {[%emt 0:12:16]} 17. Ne4 {[%emt 0:05:40]} Bxe4 {[%emt 0:01:38]} 18. Qxe4 {[%emt 0:03:07]} O-O-O {[%emt 0:05:07]} 19. Bg5 {[%emt 0:00:36]} Qxa2 {[%emt 0:02:56]} 20. Rb3 {[%emt 0:04:31]} Bb4 {[%emt 0:07:54]} 21. Rxb4 {[%emt 0:03:02]} Nxb4 {[%emt 0:00:30]} 22. Bxd8 {[%emt 0:00:35]} Rxd8 {[%emt 0:00:42]} 23. Rxd4 {[%emt 0:02:49]} Qa1+ {[%emt 0:02:32]} 24. Kd2 {[%emt 0:00:04]} Qxb2 {[%emt 0:00:15]} 25. Rxd8+ {[%emt 0:00:24]} Kxd8 {[%emt 0:00:05]} 26. Nf4 {[%emt 0:05:49]} a5 {[%emt 0:02:30]} 27. g5 {[%emt 0:00:44]} g6 {[%emt 0:01:55]} 28. h5 {[%emt 0:01:33]} gxh5 {[%emt 0:00:17]} 29. g6 {[%emt 0:00:28]} fxg6 {[%emt 0:01:07]} 30. Nxe6+ {[%emt 0:00:21]} Ke7 {[%emt 0:02:35]} 31. Nf4 {[%emt 0:08:27]} Nc6 {[%emt 0:06:26]} 32. Nxg6+ {[%emt 0:05:24]} Ke8 {[%emt 0:02:47]} 33. Qf5 {[%emt 0:27:56]} Qd4+ {[%emt 0:00:33]} 34. Kc1 {[%emt 0:02:11]} 1/2-1/2

[Event "DEN-chT XtraCon 2018-19"]
[Site "Denmark"]
[Date "2019.01.13"]
[Round "6"]
[White "Christensen, Stefan"]
[Black "Lauridsen, Jesper Morch"]
[Result "1/2-1/2"]
[ECO "B30"]
[WhiteElo "2259"]
[BlackElo "2229"]
[Annotator "NA"]
[PlyCount "112"]
[EventDate "2018.10.27"]
[EventType "team-tourn"]
[EventCountry "DEN"]
[SourceTitle "playchess.com"]
[Source "ChessBase"]
[SourceQuality "1"]
[TimeControl "40/5400+30:1800+30"]

1. e4 {[%emt 0:00:00]} c5 {[%emt 0:00:00]} 2. Nf3 {[%emt 0:00:07]} Nc6 {[%emt 0:01:04]} 3. Bb5 {[%emt 0:04:22]} d6 {[%emt 0:00:04]} 4. O-O {[%emt 0:00:57]} Bd7 {[%emt 0:00:17]} 5. Re1 {[%emt 0:02:23]} Nf6 {[%emt 0:03:38]} 6. c3 {[%emt 0:02:11]} a6 {[%emt 0:00:41]} 7. Ba4 {[%emt 0:02:33]} b5 {[%emt 0:07:03]} 8. Bc2 {[%emt 0:00:17]} Bg4 {[%emt 0:00:24]} 9. h3 {[%emt 0:08:13]} Bxf3 {[%emt 0:02:54]} 10. Qxf3 {[%emt 0:00:09]} g6 {[%emt 0:00:37]} 11. a4 {[%emt 0:04:10]} Rb8 {[%emt 0:05:47]} 12. axb5 {[%emt 0:02:40]} axb5 {[%emt 0:00:05]} 13. Na3 {[%emt 0:03:16]} Nd7 {[%emt 0:08:47]} 14. Qe2 {[%emt 0:10:28]} Qb6 {[%emt 0:07:55]} 15. d3 {[%emt 0:06:02]} Bg7 {[%emt 0:00:27]} 16. Be3 {[%emt 0:03:19]} O-O {[%emt 0:00:35]} 17. Qd2 {[%emt 0:01:26]} b4 {[%emt 0:12:34]} 18. Nc4 {[%emt 0:00:43]} Qc7 {[%emt 0:01:32]} 19. Bh6 {[%emt 0:02:57]} bxc3 {[%emt 0:00:52]} 20. bxc3 {[%emt 0:00:09]} Nce5 {[%emt 0:05:14]} 21. Bxg7 {[%emt 0:01:46]} Kxg7 {[%emt 0:02:24]} 22. Ne3 {[%emt 0:00:33]} Nf6 {[%emt 0:00:58]} 23. f4 {[%emt 0:01:55]} Ned7 {[%emt 0:03:23]} 24. Nc4 {[%emt 0:07:41]} d5 {[%emt 0:05:30]} 25. exd5 {[%emt 0:01:05]} Nxd5 {[%emt 0:00:06]} 26. f5 {[%emt 0:05:44]} gxf5 {[%emt 0:06:47]} 27. Qg5+ {[%emt 0:02:23]} Kh8 {[%emt 0:00:05]} 28. Qxf5 {[%emt 0:00:33]} e6 {[%emt 0:01:41]} 29. Qh5 {[%emt 0:01:44]} Rg8 {[%emt 0:01:29]} 30. Qf3 {[%emt 0:20:59]} Rg7 {[%emt 0:13:26]} 31. Re4 {[%emt 0:01:34]} N7f6 {[%emt 0:03:07]} 32. Re5 {[%emt 0:00:30]} Rbg8 {[%emt 0:00:57]} 33. Rf1 {[%emt 0:02:25]} Rg3 {[%emt 0:02:12]} 34. Qf2 {[%emt 0:00:13]} Nd7 {[%emt 0:02:42]} 35. d4 {[%emt 0:01:23]} Rxg2+ {[%emt 0:01:03]} 36. Qxg2 {[%emt 0:00:05]} Rxg2+ {[%emt 0:00:04]} 37. Kxg2 {[%emt 0:00:10]} Nxe5 {[%emt 0:00:16]} 38. dxe5 {[%emt 0:00:07]} Qe7 {[%emt 0:00:51]} 39. Rf3 {[%emt 0:01:41]} Qg5+ {[%emt 0:00:46]} 40. Rg3 {[%emt 0:00:18]} Qf4 {[%emt 0:00:56]} 41. Bd3 {[%emt 0:05:15]} f6 {[%emt 0:19:37]} 42. Rf3 {[%emt 0:07:54]} Qg5+ {[%emt 0:00:28]} 43. Rg3 {[%emt 0:00:29]} Qh5 {[%emt 0:01:13]} 44. exf6 {[%emt 0:03:21]} Nf4+ {[%emt 0:01:42]} 45. Kf2 {[%emt 0:00:45]} Nxd3+ {[%emt 0:03:15]} 46. Rxd3 {[%emt 0:00:11]} Qh4+ {[%emt 0:00:11]} 47. Kg2 {[%emt 0:02:55]} Qe4+ {[%emt 0:01:57]} 48. Rf3 {[%emt 0:00:06]} Qxc4 {[%emt 0:00:48]} 49. f7 {[%emt 0:00:10]} Qe2+ {[%emt 0:00:06]} 50. Kg3 {[%emt 0:05:02]} Qxf3+ {[%emt 0:00:10]} 51. Kxf3 {[%emt 0:00:07]} Kg7 {[%emt 0:00:04]} 52. Kf4 {[%emt 0:04:29]} Kxf7 {[%emt 0:00:24]} 53. Ke5 {[%emt 0:00:17]} Ke7 {[%emt 0:00:20]} 54. h4 {[%emt 0:00:27]} h5 {[%emt 0:00:06]} 55. c4 {[%emt 0:00:53]} Kd7 {[%emt 0:00:50]} 56. Ke4 {[%emt 0:01:56]} Ke7 {[%emt 0:02:50]} 1/2-1/2

[Event "DEN-chT XtraCon 2018-19"]
[Site "Denmark"]
[Date "2019.01.13"]
[Round "6"]
[White "Nielsen, Lars Aaes"]
[Black "Hansen, Mads"]
[Result "0-1"]
[ECO "B22"]
[WhiteElo "2259"]
[BlackElo "2403"]
[Annotator "NA"]
[PlyCount "96"]
[EventDate "2018.10.27"]
[EventType "team-tourn"]
[EventCountry "DEN"]
[SourceTitle "playchess.com"]
[Source "ChessBase"]
[SourceQuality "1"]
[TimeControl "40/5400+30:1800+30"]

1. e4 {[%emt 0:00:00]} c5 {[%emt 0:00:00]} 2. c3 {[%emt 0:00:00]} Nf6 {[%emt 0:00:00]} 3. e5 {[%emt 0:00:00]} Nd5 {[%emt 0:00:00]} 4. d4 {[%emt 0:00:05]} cxd4 {[%emt 0:00:00]} 5. cxd4 {[%emt 0:00:04]} d6 {[%emt 0:00:54]} 6. Nf3 {[%emt 0:00:12]} Nc6 {[%emt 0:00:15]} 7. Bc4 {[%emt 0:00:27]} dxe5 {[%emt 0:00:06]} 8. dxe5 {[%emt 0:00:11]} Ndb4 {[%emt 0:00:37]} 9. Qxd8+ {[%emt 0:16:13]} Nxd8 {[%emt 0:01:52]} 10. Na3 {[%emt 0:00:10]} a6 {[%emt 0:07:36]} 11. Bd2 {[%emt 0:06:14]} e6 {[%emt 0:02:22]} 12. O-O {[%emt 0:08:59]} Ndc6 {[%emt 0:00:19]} 13. Rfd1 {[%emt 0:06:43]} Be7 {[%emt 0:03:05]} 14. Bc3 {[%emt 0:07:10]} b5 {[%emt 0:10:27]} 15. Bb3 {[%emt 0:11:21]} Na5 {[%emt 0:11:46]} 16. Bc2 {[%emt 0:12:41]} Bb7 {[%emt 0:06:34]} 17. Nd2 {[%emt 0:07:54]} Nxc2 {[%emt 0:03:02]} 18. Nxc2 {[%emt 0:00:07]} Nc6 {[%emt 0:00:06]} 19. a3 {[%emt 0:02:50]} Rc8 {[%emt 0:08:34]} 20. Rac1 {[%emt 0:01:16]} O-O {[%emt 0:01:35]} 21. Nb3 {[%emt 0:02:49]} Rfd8 {[%emt 0:03:24]} 22. Rxd8+ {[%emt 0:00:07]} Rxd8 {[%emt 0:08:06]} 23. Nb4 {[%emt 0:01:29]} Bg5 {[%emt 0:16:42]} 24. Re1 {[%emt 0:02:49]} Nb8 {[%emt 0:02:54]} 25. f3 {[%emt 0:01:59]} Kf8 {[%emt 0:00:30]} 26. Kf2 {[%emt 0:01:50]} Ke8 {[%emt 0:00:16]} 27. Ke2 {[%emt 0:02:47]} Rc8 {[%emt 0:03:59]} 28. g3 {[%emt 0:01:07]} Bd8 {[%emt 0:00:19]} 29. Nd3 {[%emt 0:00:44]} Bd5 {[%emt 0:00:18]} 30. Nd2 {[%emt 0:01:39]} a5 {[%emt 0:00:52]} 31. Ne4 {[%emt 0:01:32]} Bxe4 {[%emt 0:01:00]} 32. fxe4 {[%emt 0:00:02]} Bb6 {[%emt 0:02:40]} 33. Rd1 {[%emt 0:01:37]} Rc4 {[%emt 0:00:50]} 34. Kf3 {[%emt 0:00:43]} Nc6 {[%emt 0:00:09]} 35. h4 {[%emt 0:01:00]} b4 {[%emt 0:03:00]} 36. axb4 {[%emt 0:00:09]} axb4 {[%emt 0:00:00]} 37. Be1 {[%emt 0:00:22]} Rd4 {[%emt 0:01:12]} 38. Bf2 {[%emt 0:01:39]} Rxd3+ {[%emt 0:00:14]} 39. Rxd3 {[%emt 0:00:01]} Nxe5+ {[%emt 0:00:07]} 40. Ke2 {[%emt 0:00:08]} Nxd3 {[%emt 0:00:05]} 41. Bxb6 {[%emt 0:30:16]} Nxb2 {[%emt 0:32:36]} 42. Bd4 {[%emt 0:00:24]} Na4 {[%emt 0:00:00]} 43. Bxg7 {[%emt 0:00:00]} b3 {[%emt 0:00:00]} 44. Kd3 {[%emt 0:00:00]} Kd7 {[%emt 0:00:00]} 45. g4 {[%emt 0:00:00]} Kc6 {[%emt 0:00:00]} 46. h5 {[%emt 0:00:00]} Kb5 {[%emt 0:00:00]} 47. Ke3 {[%emt 0:00:00]} Kc4 {[%emt 0:00:00]} 48. Ba1 {[%emt 0:00:00]} e5 {[%emt 0:00:00] Kd4+} 0-1

[Event "DEN-chT XtraCon 2018-19"]
[Site "Denmark"]
[Date "2019.01.13"]
[Round "6"]
[White "Lindfeldt, Jan Magnus"]
[Black "Thogersen, Rasmus"]
[Result "1-0"]
[ECO "B50"]
[WhiteElo "2255"]
[BlackElo "2304"]
[Annotator "NA"]
[PlyCount "47"]
[EventDate "2018.10.27"]
[EventType "team-tourn"]
[EventCountry "DEN"]
[SourceTitle "playchess.com"]
[Source "ChessBase"]
[SourceQuality "1"]
[TimeControl "40/5400+30:1800+30"]

1. e4 {[%emt 0:00:00]} c5 {[%emt 0:01:00]} 2. Nf3 {[%emt 0:00:00]} d6 {[%emt 0:00:06]} 3. h3 {[%emt 0:00:00]} g6 {[%emt 0:01:13]} 4. c3 {[%emt 0:01:01]} Nf6 {[%emt 0:00:19]} 5. Bd3 {[%emt 0:02:14]} Bg7 {[%emt 0:00:37]} 6. O-O {[%emt 0:00:06]} O-O {[%emt 0:01:17]} 7. Bc2 {[%emt 0:06:05]} e5 {[%emt 0:00:15]} 8. d4 {[%emt 0:01:18]} exd4 {[%emt 0:00:56]} 9. cxd4 {[%emt 0:00:09]} cxd4 {[%emt 0:00:16]} 10. Nxd4 {[%emt 0:00:41]} Re8 {[%emt 0:04:55]} 11. Nc3 {[%emt 0:13:54]} d5 {[%emt 0:01:48]} 12. Bg5 {[%emt 0:19:51]} dxe4 {[%emt 0:08:09]} 13. Nxe4 {[%emt 0:02:19]} Qb6 {[%emt 0:04:04]} 14. Nxf6+ {[%emt 0:08:08]} Bxf6 {[%emt 0:00:19]} 15. Bxf6 {[%emt 0:01:16]} Qxf6 {[%emt 0:00:08]} 16. Bb3 {[%emt 0:01:41]} Na6 {[%emt 0:08:03]} 17. Rc1 {[%emt 0:07:06]} Re4 {[%emt 0:09:47]} 18. Qf3 {[%emt 0:04:48]} Rf4 {[%emt 0:04:46]} 19. Qe3 {[%emt 0:07:48]} Bd7 {[%emt 0:02:42]} 20. Ne2 {[%emt 0:02:31]} Rh4 {[%emt 0:03:51]} 21. Rfd1 {[%emt 0:05:12]} Bc6 {[%emt 0:03:43]} 22. Nd4 {[%emt 0:02:17]} Re8 {[%emt 0:04:54]} 23. Rxc6 {[%emt 0:01:20]} Qxc6 {[%emt 0:05:34]} 24. Bxf7+ {[%emt 0:00:43]} 1-0

[Event "DEN-chT XtraCon 2018-19"]
[Site "Denmark"]
[Date "2019.01.13"]
[Round "6"]
[White "Sobjerg, Erik"]
[Black "Erlandsen, Carsten"]
[Result "1-0"]
[ECO "B90"]
[WhiteElo "2252"]
[BlackElo "2068"]
[Annotator "NA"]
[PlyCount "85"]
[EventDate "2018.10.27"]
[EventType "team-tourn"]
[EventCountry "DEN"]
[SourceTitle "playchess.com"]
[Source "ChessBase"]
[SourceQuality "1"]
[TimeControl "40/5400+30:1800+30"]

1. e4 {[%emt 0:00:00]} c5 {[%emt 0:01:57]} 2. Nf3 {[%emt 0:00:19]} d6 {[%emt 0:00:05]} 3. d4 {[%emt 0:00:09]} cxd4 {[%emt 0:00:03]} 4. Nxd4 {[%emt 0:00:05]} Nf6 {[%emt 0:00:06]} 5. Nc3 {[%emt 0:00:02]} a6 {[%emt 0:00:07]} 6. Bc4 {[%emt 0:00:41]} e6 {[%emt 0:00:59]} 7. O-O {[%emt 0:00:57]} Nbd7 {[%emt 0:00:23]} 8. Bxe6 {[%emt 0:03:23]} fxe6 {[%emt 0:00:03]} 9. Nxe6 {[%emt 0:00:12]} Qa5 {[%emt 0:03:34]} 10. b4 {[%emt 0:02:58]} Qe5 {[%emt 0:19:51]} 11. Nc7+ {[%emt 0:27:11]} Kd8 {[%emt 0:01:58]} 12. Bb2 {[%emt 0:13:24]} Kxc7 {[%emt 0:10:40]} 13. Nd5+ {[%emt 0:00:21]} Nxd5 {[%emt 0:00:12]} 14. Bxe5 {[%emt 0:00:08]} dxe5 {[%emt 0:01:51]} 15. exd5 {[%emt 0:11:49]} Bxb4 {[%emt 0:04:03]} 16. Qg4 {[%emt 0:00:15]} Bc5 {[%emt 0:16:46]} 17. Qxg7 {[%emt 0:04:06]} Rf8 {[%emt 0:00:08]} 18. d6+ Bxd6 {[%emt 0:01:58]} 19. Rad1 {[%emt 0:06:27]} Bc5 {[%emt 0:01:09]} 20. Rd5 {[%emt 0:03:59]} b6 {[%emt 0:00:38]} 21. Rfd1 {[%emt 0:01:38]} Rd8 {[%emt 0:15:32]} 22. Qxh7 {[%emt 0:01:58]} Ra7 {[%emt 0:01:35]} 23. Rxe5 {[%emt 0:04:39]} Bb7 {[%emt 0:01:04]} 24. Rf5 {[%emt 0:01:34]} Bc6 {[%emt 0:01:17]} 25. Rf7 {[%emt 0:01:19]} Kc8 {[%emt 0:00:56]} 26. h4 {[%emt 0:01:16]} Rb7 {[%emt 0:05:05]} 27. h5 {[%emt 0:00:56]} Nf8 {[%emt 0:04:35]} 28. Rxd8+ {[%emt 0:01:07]} Kxd8 {[%emt 0:00:02]} 29. Rxb7 {[%emt 0:02:45]} Nxh7 {[%emt 0:00:24]} 30. Rxh7 {[%emt 0:00:03]} Be4 {[%emt 0:01:02]} 31. Ra7 {[%emt 0:00:18]} Ke8 {[%emt 0:02:49]} 32. h6 {[%emt 0:00:28]} Kf8 {[%emt 0:00:46]} 33. h7 {[%emt 0:07:31]} Bd4 {[%emt 0:00:26]} 34. Rd7 {[%emt 0:00:26]} Bh8 {[%emt 0:01:39]} 35. c3 {[%emt 0:00:16]} Bg6 {[%emt 0:02:29]} 36. Rc7 {[%emt 0:01:40]} Bg7 {[%emt 0:00:32]} 37. Rc8+ {[%emt 0:00:42]} Be8 {[%emt 0:00:08]} 38. f4 {[%emt 0:00:30]} b5 {[%emt 0:01:01]} 39. g4 {[%emt 0:00:14]} a5 {[%emt 0:00:26]} 40. f5 {[%emt 0:01:57]} Ke7 {[%emt 0:01:06]} 41. g5 {[%emt 0:31:39]} Kd7 {[%emt 0:02:40]} 42. f6 {[%emt 0:00:00]} Bh8 {[%emt 0:00:15]} 43. f7 {[%emt 0:00:00]} 1-0

[Event "DEN-chT XtraCon 2018-19"]
[Site "Denmark"]
[Date "2019.01.13"]
[Round "6"]
[White "Vasli, Aref"]
[Black "Haubro, Sigfred"]
[Result "1-0"]
[ECO "B01"]
[WhiteElo "2251"]
[BlackElo "2158"]
[Annotator "NA"]
[PlyCount "93"]
[EventDate "2018.10.27"]
[EventType "team-tourn"]
[EventCountry "DEN"]
[SourceTitle "playchess.com"]
[Source "ChessBase"]
[SourceQuality "1"]
[TimeControl "40/5400+30:1800+30"]

1. e4 {[%emt 0:00:00]} d5 {[%emt 0:02:03]} 2. exd5 {[%emt 0:00:00]} Qxd5 {[%emt 0:00:34]} 3. Nc3 {[%emt 0:00:00]} Qa5 {[%emt 0:00:28]} 4. Nf3 {[%emt 0:00:37]} Nf6 {[%emt 0:00:16]} 5. Be2 {[%emt 0:01:37]} c6 {[%emt 0:06:50]} 6. O-O {[%emt 0:00:39]} g6 {[%emt 0:00:38]} 7. Re1 {[%emt 0:02:27]} Bg7 {[%emt 0:05:42]} 8. Bc4 {[%emt 0:11:31]} e6 {[%emt 0:07:58]} 9. d4 {[%emt 0:01:37]} O-O {[%emt 0:00:31]} 10. Bd2 {[%emt 0:04:08]} Qc7 {[%emt 0:02:04]} 11. Qc1 {[%emt 0:00:12]} Nbd7 {[%emt 0:02:49]} 12. Bf4 {[%emt 0:02:17]} Qd8 {[%emt 0:00:28]} 13. Bb3 {[%emt 0:03:39]} b5 {[%emt 0:06:28]} 14. Bd6 {[%emt 0:27:11]} Re8 {[%emt 0:01:51]} 15. a4 {[%emt 0:00:25]} Nb6 {[%emt 0:06:33]} 16. Bc5 {[%emt 0:00:21]} Bd7 {[%emt 0:13:28]} 17. a5 {[%emt 0:02:54]} Nbd5 {[%emt 0:02:07]} 18. Ne5 {[%emt 0:00:49]} Qc7 {[%emt 0:07:40]} 19. Nxd5 Nxd5 20. Re4 {[%emt 0:03:54]} Rad8 {[%emt 0:05:14]} 21. c3 {[%emt 0:00:50]} f6 {[%emt 0:01:02]} 22. Nxd7 {[%emt 0:01:56]} Qxd7 {[%emt 0:00:59]} 23. Qd2 {[%emt 0:05:06]} f5 {[%emt 0:04:07]} 24. Re2 {[%emt 0:00:48]} e5 {[%emt 0:00:46]} 25. dxe5 {[%emt 0:00:56]} Rxe5 {[%emt 0:01:24]} 26. Rxe5 {[%emt 0:01:14]} Bxe5 {[%emt 0:00:06]} 27. Re1 {[%emt 0:00:34]} Qc7 {[%emt 0:00:39]} 28. Qe3 {[%emt 0:12:34]} Bxh2+ {[%emt 0:09:52]} 29. Kh1 {[%emt 0:00:17]} Bf4 {[%emt 0:00:37]} 30. Qe6+ {[%emt 0:00:43]} Kg7 {[%emt 0:01:19]} 31. Bd4+ {[%emt 0:01:22]} Kh6 {[%emt 0:00:10]} 32. g3 {[%emt 0:00:34]} Bxg3 {[%emt 0:01:36]} 33. fxg3 {[%emt 0:00:01]} Qxg3 {[%emt 0:00:15]} 34. Bxd5 {[%emt 0:00:22]} Qh4+ {[%emt 0:03:40]} 35. Kg2 {[%emt 0:05:37]} Qg4+ {[%emt 0:00:21]} 36. Kf1 {[%emt 0:02:08]} Rxd5 {[%emt 0:02:07]} 37. Re2 {[%emt 0:03:15]} Qh3+ {[%emt 0:01:22]} 38. Kg1 {[%emt 0:03:34]} Qg4+ {[%emt 0:00:56]} 39. Rg2 {[%emt 0:00:25]} Qd1+ {[%emt 0:00:25]} 40. Kf2 {[%emt 0:00:23]} Qd2+ {[%emt 0:02:18]} 41. Kf3 {[%emt 0:31:28]} Qd1+ {[%emt 0:31:08]} 42. Qe2 {[%emt 0:00:54]} Qh1 {[%emt 0:00:00]} 43. Qe3+ {[%emt 0:00:00]} f4 {[%emt 0:00:00]} 44. Qxf4+ {[%emt 0:00:00]} g5 {[%emt 0:00:00]} 45. Qf6+ {[%emt 0:00:00]} Kh5 {[%emt 0:00:00]} 46. Qf7+ {[%emt 0:00:00]} Kh6 {[%emt 0:00:00]} 47. Qg7+ {[%emt 0:00:00]} 1-0

[Event "DEN-chT XtraCon 2018-19"]
[Site "Denmark"]
[Date "2019.01.13"]
[Round "6"]
[White "Ostergaard, Jens"]
[Black "Vinter-Schou, Uffe"]
[Result "0-1"]
[ECO "A61"]
[WhiteElo "2203"]
[BlackElo "2341"]
[Annotator "NA"]
[PlyCount "106"]
[EventDate "2018.10.27"]
[EventType "team-tourn"]
[EventCountry "DEN"]
[SourceTitle "playchess.com"]
[Source "ChessBase"]
[SourceQuality "1"]
[TimeControl "40/5400+30:1800+30"]

1. d4 {[%emt 0:00:00]} Nf6 {[%emt 0:00:00]} 2. Nf3 {[%emt 0:00:00]} e6 {[%emt 0:00:12]} 3. c4 {[%emt 0:00:00]} c5 {[%emt 0:00:13]} 4. d5 {[%emt 0:00:02]} d6 {[%emt 0:00:15]} 5. Nc3 {[%emt 0:00:23]} exd5 {[%emt 0:00:06]} 6. cxd5 {[%emt 0:00:08]} g6 {[%emt 0:00:09]} 7. h3 {[%emt 0:01:15]} a6 {[%emt 0:00:32]} 8. a4 {[%emt 0:00:11]} Qe7 {[%emt 0:00:10]} 9. Bg5 {[%emt 0:01:18]} Bg7 {[%emt 0:00:21]} 10. e3 {[%emt 0:01:34]} h6 {[%emt 0:01:52]} 11. Bh4 {[%emt 0:01:37]} Nbd7 {[%emt 0:02:35]} 12. Be2 {[%emt 0:07:00]} O-O {[%emt 0:00:56]} 13. O-O {[%emt 0:00:53]} Rb8 {[%emt 0:00:32]} 14. Nd2 {[%emt 0:02:49]} g5 {[%emt 0:06:43]} 15. Bg3 {[%emt 0:00:06]} Ne5 {[%emt 0:00:09]} 16. Re1 {[%emt 0:13:18]} Ne8 {[%emt 0:07:57]} 17. Bf1 {[%emt 0:14:52]} Bd7 {[%emt 0:08:55]} 18. a5 {[%emt 0:04:48]} Nc7 {[%emt 0:00:36]} 19. f4 {[%emt 0:13:54]} Ng6 {[%emt 0:00:14]} 20. Kh2 {[%emt 0:01:25]} Nb5 {[%emt 0:16:59]} 21. Qc2 {[%emt 0:15:04]} f5 {[%emt 0:11:29]} 22. Nc4 {[%emt 0:01:34]} Rbd8 {[%emt 0:04:43]} 23. Nb6 {[%emt 0:04:51]} Be8 {[%emt 0:04:08]} 24. Qb3 {[%emt 0:02:15]} Nxc3 {[%emt 0:05:24]} 25. bxc3 {[%emt 0:00:05]} h5 {[%emt 0:03:55]} 26. Bf2 {[%emt 0:08:15]} Qf6 {[%emt 0:00:52]} 27. Rac1 {[%emt 0:01:22]} h4 {[%emt 0:03:11]} 28. Nc4 {[%emt 0:02:10]} Bb5 {[%emt 0:01:21]} 29. Nd2 {[%emt 0:00:52]} Bxf1 {[%emt 0:00:56]} 30. Rxf1 {[%emt 0:00:12]} gxf4 {[%emt 0:00:45]} 31. exf4 {[%emt 0:00:05]} Nxf4 {[%emt 0:00:36]} 32. Qc4 {[%emt 0:01:39]} Qg5 {[%emt 0:03:47]} 33. Rg1 {[%emt 0:00:56]} Be5 {[%emt 0:01:27]} 34. Kh1 {[%emt 0:00:42]} Nh5 {[%emt 0:05:27]} 35. Nf3 {[%emt 0:00:26]} Qf4 {[%emt 0:01:26]} 36. Nxe5 {[%emt 0:00:41]} Qxf2 {[%emt 0:00:13]} 37. Ng6 {[%emt 0:00:34]} Ng3+ {[%emt 0:00:14]} 38. Kh2 {[%emt 0:00:06]} Ne4 {[%emt 0:00:09]} 39. Ne7+ {[%emt 0:01:01]} Kh7 {[%emt 0:01:07]} 40. Rgf1 {[%emt 0:00:45]} Qg3+ {[%emt 0:00:35]} 41. Kg1 {[%emt 0:30:08]} Qe5 {[%emt 0:31:36]} 42. Nxf5 {[%emt 0:00:50]} Rxf5 {[%emt 0:00:06]} 43. Rxf5 {[%emt 0:00:09]} Qxf5 {[%emt 0:00:02]} 44. Rf1 {[%emt 0:00:15]} Qe5 {[%emt 0:01:59]} 45. Rf7+ {[%emt 0:00:00]} Kg8 {[%emt 0:00:00]} 46. Rxb7 {[%emt 0:00:00]} Rf8 {[%emt 0:00:00]} 47. Qd3 {[%emt 0:00:00]} Qf4 {[%emt 0:00:00]} 48. Qe2 {[%emt 0:00:00]} Ng3 {[%emt 0:00:00]} 49. Qe6+ {[%emt 0:00:00]} Kh8 {[%emt 0:00:00]} 50. Rb1 {[%emt 0:00:00]} Qf1+ {[%emt 0:00:00]} 51. Kh2 {[%emt 0:00:00]} Qxb1 {[%emt 0:00:00]} 52. Qh6+ {[%emt 0:00:00]} Kg8 {[%emt 0:00:00]} 53. Qg5+ {[%emt 0:00:00]} Kf7 {[%emt 0:00:00]} 0-1